bitfinex/quotes_SOLUSD_20250101
["timestamp","ask_amount","ask_price","bid_price","bid_amount"]
[1735715717379,0.70870705,190.31,190.23,60.79805329]
[1735715717577,7.05330705,190.32,190.24,0.78830491]
[1735715719276,7.05330705,190.32,190.23,60.79805329]
[1735715719477,6.3446,190.3,190.23,60.79805329]
[1735715719673,0.70870705,190.29,190.21,61.58634214]
[1735715719973,7.05330705,190.3,190.21,61.58634214]
[1735715720168,6.3446,190.3,190.22,23.776884]
[1735715720368,6.3446,190.3,190.23,0.78824966]
[1735715722786,6.3446,190.3,190.23,61.58630295]
[1735715725204,7.05330705,190.3,190.23,61.58630295]
[1735715725402,7.05330705,190.3,190.23,60.79805329]
[1735715725687,7.05330705,190.3,190.21,23.776884]
[1735715728701,7.05330705,190.3,190.21,84.57493729]
[1735715730500,6.3446,190.3,190.21,84.57493729]
[1735715730797,6.3446,190.3,190.22,0.78831993]
[1735715731799,6.3446,190.3,190.22,61.58637322]
[1735715740685,7.05330705,190.3,190.22,61.58637322]
[1735715742105,8.36305854,190.29,190.22,60.79805329]
[1735715742300,0.70870705,190.28,190.16,72.20994665]
[1735715742503,0.70870705,190.28,190.17,23.776884]
[1735715743189,6.5443,190.27,190.16,60.79805329]
[1735715743387,0.70870705,190.26,190.16,61.58658597]
[1735715743586,0.70870705,190.26,190.17,23.776884]
[1735715746696,0.70870705,190.26,190.17,84.57493729]
[1735715749210,1.6023,190.25,190.17,60.79805329]
[1735715749401,20.70870705,190.24,190.16,60.79805329]
[1735715750919,6.2415,190.23,190.16,60.79805329]
[1735715759549,6.2415,190.23,190.17,0.78856]
[1735715761839,6.2415,190.23,190.17,61.58661329]
[1735715762442,6.2415,190.23,190.18,34.40039175]
[1735715762627,1.6023,190.25,190.19,0.78840894]
[1735715762819,1.6023,190.25,190.19,11.41191669]
[1735715763938,1.6023,190.25,190.19,61.58646223]
[1735715764321,1.6023,190.25,190.19,60.79805329]
[1735715765110,1.6023,190.25,190.2,0.78841657]
[1735715771150,2.31100705,190.25,190.19,60.79805329]
[1735715771651,1.6023,190.25,190.19,60.79805329]
[1735715773747,1.6023,190.25,190.17,23.776884]
[1735715776440,0.70870705,190.24,190.16,0.78850759]
[1735715776763,0.70870705,190.24,190.16,60.79805329]
[1735715776935,6.4848,190.23,190.16,60.79805329]
[1735715778131,6.4848,190.23,190.16,61.58666343]
[1735715783355,6.4848,190.23,190.16,60.79805329]
[1735715783951,0.70870705,190.22,190.16,60.79805329]
[1735715784155,6.4848,190.23,190.16,60.79805329]
[1735715784854,0.70870705,190.22,190.16,60.79805329]
[1735715785154,6.4848,190.23,190.16,60.79805329]
[1735715785959,6.4848,190.23,190.14,23.776884]
[1735715787055,6.4848,190.23,190.15,0.78861124]
[1735715787834,6.4848,190.23,190.15,11.41211899]
[1735715788459,6.4848,190.23,190.15,0.78861124]
[1735715788842,6.4848,190.23,190.15,61.58666453]
[1735715793046,6.4848,190.23,190.16,34.40039175]
[1735715793262,6.4848,190.23,190.17,61.58652463]
[1735715793757,6.4848,190.23,190.18,23.776884]
[1735715793967,6.4848,190.23,190.19,0.78842684]
[1735715795460,1.6023,190.25,190.2,84.57493729]
[1735715795654,1.6023,190.25,190.21,61.5863744]
[1735715799287,1.6023,190.25,190.21,60.79805329]
[1735715800978,1.6023,190.25,190.18,0.7884499]
[1735715803989,1.6023,190.25,190.18,61.58650319]
[1735715809382,1.6023,190.25,190.19,23.776884]
[1735715809578,1.6023,190.25,190.2,0.78840136]
[1735715810077,1.6023,190.25,190.2,61.58645465]
[1735715814391,6.6296,190.28,190.2,61.58645465]
[1735715817167,6.6296,190.28,190.21,23.776884]
[1735715817362,6.6296,190.28,190.22,0.78836743]
[1735715821891,6.6296,190.28,190.22,61.58642072]
[1735715822262,6.6296,190.28,190.22,60.79805329]
[1735715823991,7.33830705,190.28,190.22,60.79805329]
[1735715824794,6.6296,190.28,190.22,60.79805329]
[1735715824966,6.6296,190.28,190.23,0.7883139]
[1735715827981,6.6296,190.28,190.23,61.58636719]
[1735715839425,1.6004,190.29,190.24,23.776884]
[1735715839714,1.6004,190.29,190.25,0.78817028]
[1735715842919,1.6004,190.29,190.25,61.58622357]
[1735715843422,6.4716,190.33,190.26,95.19844504]
[1735715843611,6.4716,190.33,190.28,23.776884]
[1735715843811,6.4716,190.33,190.29,61.58607047]
[1735715844600,1.5971,190.34,190.29,61.58607047]
[1735715847998,1.5971,190.34,190.29,60.79805329]
[1735715849010,1.5971,190.34,190.27,23.776884]
[1735715850411,1.5971,190.34,190.28,0.78808661]
[1735715851511,1.5971,190.34,190.27,0.78805489]
[1735715851926,1.5971,190.34,190.27,61.58610818]
[1735715852650,6.4716,190.37,190.28,84.57493729]
[1735715852822,6.4716,190.37,190.3,23.776884]
[1735715853019,6.4716,190.37,190.31,0.78791874]
[1735715858839,1.6612,190.39,190.32,23.776884]
[1735715859140,1.6612,190.39,190.34,34.40039175]
[1735715859313,6.5677,190.42,190.35,0.78773807]
[1735715860224,6.5677,190.42,190.35,61.58579136]
[1735715865124,6.5677,190.42,190.36,23.776884]
[1735715865321,6.5677,190.42,190.38,84.57493729]
[1735715865543,6.5677,190.42,190.39,0.78759887]
[1735715867043,6.6048,190.46,190.39,61.58565216]
[1735715871566,6.6048,190.46,190.4,23.776884]
[1735715871745,6.6048,190.46,190.41,0.78756041]
[1735715872971,6.6048,190.46,190.41,61.5856137]
[1735715874978,6.5752201,190.49,190.41,61.5856137]
[1735715875149,6.5752201,190.49,190.42,23.776884]
[1735715876060,6.5752201,190.49,190.42,84.57493729]
[1735715879055,7.28392715,190.49,190.42,60.79805329]
[1735715880896,6.0744,190.47,190.42,60.79805329]
[1735715881184,6.78310705,190.47,190.42,60.79805329]
[1735715881479,6.5752201,190.46,190.42,60.79805329]
[1735715881899,0.70870705,190.45,190.42,60.79805329]
[1735715882076,0.70870705,190.45,190.37,61.5857177]
[1735715882554,0.70870705,190.45,190.37,60.79805329]
[1735715883163,0.70870705,190.45,190.35,61.58579191]
[1735715883478,20.0,190.44,190.35,60.79805329]
[1735715883684,0.70870705,190.43,190.35,60.79805329]
[1735715883888,6.0744,190.42,190.35,60.79805329]
[1735715889863,6.0744,190.42,190.35,61.58583138]
[1735715891072,6.0744,190.42,190.35,72.20933913]
[1735715894183,6.0744,190.42,190.35,61.58583138]
[1735715894488,6.0744,190.42,190.35,71.42156104]
[1735715897484,0.70870705,190.41,190.32,61.58584958]
[1735715897780,1.6444,190.4,190.32,60.79805329]
[1735715898081,0.70870705,190.39,190.32,60.79805329]
[1735715899487,20.70870705,190.39,190.3,71.42156104]
[1735715899670,20.70870705,190.39,190.3,60.79805329]
[1735715899875,20.70870705,190.39,190.3,71.42156104]
[1735715900991,20.70870705,190.39,190.31,0.78800168]
[1735715903175,0.70870705,190.39,190.31,61.58605497]
[1735715904801,0.70870705,190.39,190.31,72.20956272]
[1735715905992,1.6444,190.4,190.31,72.20956272]
[1735715906196,0.70870705,190.39,190.31,72.20956272]
[1735715908383,0.70870705,190.39,190.31,61.58605497]
[1735715908590,0.70870705,190.39,190.31,72.20956272]
[1735715908994,0.70870705,190.39,190.31,61.58605497]
[1735715911499,0.70870705,190.39,190.32,23.776884]
[1735715911798,1.6444,190.4,190.32,23.776884]
[1735715912103,1.6444,190.4,190.32,84.57493729]
[1735715921912,1.6444,190.4,190.32,60.79805329]
[1735715922090,0.70870705,190.39,190.32,60.79805329]
[1735715924089,0.70870705,190.39,190.31,60.79805329]
[1735715925113,0.70870705,190.39,190.31,61.58599902]
[1735715925297,0.70870705,190.39,190.31,72.20950677]
[1735715925501,1.6444,190.4,190.31,72.20950677]
[1735715926804,1.6444,190.4,190.32,23.776884]
[1735715927105,1.6444,190.4,190.32,84.57493729]
[1735715927316,1.6444,190.4,190.33,0.78788578]
[1735715930116,1.6444,190.4,190.33,61.58593907]
[1735715932596,1.6444,190.4,190.33,72.20944682]
[1735715933119,1.6444,190.4,190.33,11.41139353]
[1735715934138,1.6444,190.4,190.34,23.776884]
[1735715934432,1.6444,190.4,190.35,11.41128551]
[1735715938924,6.0744,190.42,190.36,71.42156104]
[1735715939138,6.0744,190.42,190.37,0.78769487]
[1735715940415,6.0744,190.42,190.37,11.41120262]
[1735715941405,6.0744,190.42,190.38,10.62350775]
[1735715946743,1.5662,190.45,190.38,10.62350775]
[1735715947333,1.5662,190.45,190.37,72.20925591]
[1735715947521,1.5662,190.45,190.39,10.62350775]
[1735715947838,1.5662,190.45,190.4,0.78757782]
[1735715948732,1.5662,190.45,190.38,95.19844504]
[1735715949031,1.5662,190.45,190.39,0.78763338]
[1735715957946,1.5662,190.45,190.4,23.776884]
[1735715959645,1.5662,190.45,190.39,23.776884]
[1735715963737,1.5662,190.45,190.38,60.79805329]
[1735715963940,0.70870705,190.44,190.38,60.79805329]
[1735715966158,0.70870705,190.44,190.37,23.776884]
[1735715968528,1.5662,190.45,190.37,23.776884]
[1735715970157,1.5662,190.45,190.38,0.78767719]
[1735715972456,1.5662,190.45,190.37,23.776884]
[1735715985060,1.5662,190.45,190.37,24.56459471]
[1735715985248,6.95100705,190.44,190.36,60.79805329]
[1735715985457,6.95100705,190.44,190.38,1.7797836]
[1735715986357,6.95100705,190.44,190.35,23.776884]
[1735715987253,6.95100705,190.44,190.32,84.55706104]
[1735715987453,1.5332,190.43,190.36,1.78026191]
[1735715987672,0.70870705,190.42,190.36,1.78026191]
[1735715988149,0.70870705,190.42,190.33,23.776884]
[1735715988376,0.70870705,190.42,190.33,26.40727268]
[1735715988681,0.70870705,190.42,190.34,1.7808581]
[1735715989369,0.70870705,190.42,190.33,23.776884]
[1735715990074,0.70870705,190.42,190.33,24.56475451]
[1735715990271,0.70870705,190.42,190.33,35.18826226]
[1735715990577,0.70870705,190.42,190.34,1.78059651]
[1735715991279,1.5332,190.43,190.35,23.776884]
[1735715991459,1.5332,190.43,190.35,35.1882335]
[1735715993080,1.5332,190.43,190.37,23.776884]
[1735715993476,1.5332,190.43,190.37,24.56461856]
[1735715993868,1.5332,190.43,190.37,35.18812631]
[1735715998059,1.5332,190.43,190.37,95.9861796]
[1735715998385,1.5332,190.43,190.37,95.19844504]
[1735715998569,1.5332,190.43,190.39,23.776884]
[1735716003383,6.2423,190.44,190.39,84.57493729]
[1735716003592,6.2423,190.44,190.41,23.776884]
[1735716004099,6.2423,190.44,190.39,60.79805329]
[1735716006963,0.70870705,190.43,190.33,61.58577357]
[1735716007380,0.70870705,190.43,190.34,28.18052636]
[1735716008286,0.70870705,190.43,190.36,23.776884]
[1735716009177,0.70870705,190.43,190.34,23.776884]
[1735716009686,0.70870705,190.43,190.34,34.40039175]
[1735716010493,1.5528,190.42,190.34,23.776884]
[1735716010704,0.70870705,190.41,190.35,1.77547237]
[1735716011493,0.70870705,190.41,190.34,23.776884]
[1735716016293,1.5528,190.42,190.34,23.776884]
[1735716016505,1.5528,190.42,190.34,35.18822073]
[1735716016704,1.5528,190.42,190.36,23.776884]
[1735716018099,1.5528,190.42,190.35,0.78777581]
[1735716019287,1.5528,190.42,190.36,23.776884]
[1735716019493,1.5528,190.42,190.36,34.40039175]
[1735716020970,1.5528,190.42,190.36,35.18813291]
[1735716021492,6.2423,190.44,190.38,10.62350775]
[1735716021681,6.2423,190.44,190.38,11.41118914]
[1735716024795,6.2423,190.44,190.38,23.776884]
[1735716026184,0.70870705,190.43,190.36,60.79805329]
[1735716026498,0.70870705,190.43,190.35,84.55466104]
[1735716026704,0.70870705,190.43,190.36,23.776884]
[1735716028200,0.70870705,190.43,190.35,60.79805329]
[1735716028879,1.5423,190.42,190.35,60.79805329]
[1735716029310,1.5423,190.42,190.35,23.776884]
[1735716029902,0.70870705,190.41,190.32,73.93375329]
[1735716030083,0.70870705,190.41,190.32,84.55726104]
[1735716030601,0.70870705,190.41,190.33,23.776884]
[1735716033108,6.5919,190.4,190.33,23.776884]
[1735716035501,6.5919,190.4,190.32,84.55726104]
[1735716035502,6.5919,190.4,190.32,23.75920775]
[1735716035708,0.70870705,190.39,190.32,13.1357]
[1735716036811,0.70870705,190.39,190.33,1.77518909]
[1735716037507,0.70870705,190.39,190.32,13.1357]
[1735716037888,6.5919,190.4,190.32,13.1357]
[1735716038511,0.70870705,190.39,190.32,23.75920775]
[1735716038809,0.70870705,190.39,190.33,1.77489718]
[1735716039611,0.70870705,190.39,190.32,23.75920775]
[1735716040308,6.5919,190.4,190.32,23.75920775]
[1735716040502,0.70870705,190.39,190.32,23.75920775]
[1735716040807,6.5919,190.4,190.32,23.75920775]
[1735716042814,6.5919,190.4,190.33,35.18829857]
[1735716043111,6.5919,190.4,190.34,10.62350775]
[1735716045209,6.5919,190.4,190.35,23.776884]
[1735716045411,6.5919,190.4,190.37,23.776884]
[1735716049715,6.5919,190.4,190.36,11.41125901]
[1735716053729,6.5919,190.4,190.37,10.62350775]
[1735716055538,6.5919,190.4,190.36,11.41125901]
[1735716059244,6.2192,190.45,190.39,10.62350775]
[1735716060233,0.70870705,190.44,190.37,71.42156104]
[1735716060543,6.2192,190.45,190.37,71.42156104]
[1735716060745,6.2192,190.45,190.38,23.776884]
[1735716060918,0.70870705,190.44,190.38,23.776884]
[1735716062074,6.2192,190.45,190.38,23.776884]
[1735716062351,0.70870705,190.44,190.37,60.79805329]
[1735716063944,6.92790705,190.45,190.37,60.79805329]
[1735716064746,0.70870705,190.44,190.37,60.79805329]
[1735716065343,0.70870705,190.44,190.37,23.776884]
[1735716066052,0.70870705,190.44,190.36,71.42156104]
[1735716066244,0.70870705,190.44,190.34,68.31731829]
[1735716066445,0.70870705,190.44,190.34,78.94082604]
[1735716067158,0.70870705,190.44,190.35,1.77336846]
[1735716067855,1.6234,190.43,190.34,60.79805329]
[1735716068055,20.70870705,190.42,190.31,60.79805329]
[1735716068263,6.2192,190.41,190.31,77.64076104]
[1735716068449,0.70870705,190.4,190.32,25.55093899]
[1735716069057,0.70870705,190.4,190.33,1.77405499]
[1735716069644,0.70870705,190.4,190.32,23.776884]
[1735716072252,0.70870705,190.4,190.31,71.42156104]
[1735716073264,0.70870705,190.4,190.31,72.20954052]
[1735716074348,0.70870705,190.4,190.31,11.41148723]
[1735716075846,0.70870705,190.4,190.33,10.62350775]
[1735716079163,0.70870705,190.4,190.34,10.62350775]
[1735716079368,6.2192,190.41,190.35,10.62350775]
[1735716080463,6.2192,190.41,190.34,34.40039175]
[1735716080971,0.70870705,190.4,190.33,10.62350775]
[1735716081165,0.70870705,190.4,190.32,60.79805329]
[1735716082072,0.70870705,190.4,190.32,71.42156104]
[1735716083473,0.70870705,190.4,190.32,10.62350775]
[1735716090272,0.70870705,190.4,190.32,34.40039175]
[1735716090656,3.92790705,190.41,190.32,34.40039175]
[1735716094272,3.92790705,190.41,190.32,10.62350775]
[1735716094584,20.0,190.4,190.3,10.62350775]
[1735716094870,1.5326,190.39,190.29,86.17316104]
[1735716095189,1.5326,190.39,190.29,60.79805329]
[1735716096472,20.0,190.38,190.29,60.79805329]
[1735716096678,20.0,190.38,190.26,73.93785329]
[1735716096852,6.0397,190.37,190.27,10.62350775]
[1735716101984,6.0397,190.37,190.27,34.40039175]
[1735716104279,6.0397,190.37,190.26,73.93785329]
[1735716104482,1.6184,190.36,190.25,10.62350775]
[1735716104687,2.32943181,190.36,190.24,10.62350775]
[1735716105660,20.0,190.34,190.23,61.5862231]
[1735716105865,6.1523,190.35,190.23,71.42156104]
[1735716106276,6.86333181,190.35,190.23,71.42156104]
[1735716107588,6.1523,190.35,190.23,71.42156104]
[1735716107789,0.71103181,190.34,190.23,71.42156104]
[1735716108173,1.6184,190.33,190.23,60.79805329]
[1735716108876,7.2460725,190.33,190.23,60.79805329]
[1735716109984,6.1523,190.32,190.21,23.776884]
[1735716110162,6.1523,190.32,190.21,34.40039175]
[1735716110163,12.28926714,190.32,190.21,34.40039175]
[1735716111472,12.28926714,190.32,190.22,10.62350775]
[1735716114693,12.28926714,190.32,190.23,10.62350775]
[1735716114892,12.28926714,190.32,190.26,10.62350775]
[1735716115074,12.28926714,190.32,190.25,10.62350775]
[1735716115401,12.28926714,190.32,190.24,10.62350775]
[1735716116200,12.28926714,190.32,190.25,10.62350775]
[1735716116806,12.28926714,190.32,190.26,10.62350775]
[1735716116979,6.1523,190.32,190.26,10.62350775]
[1735716118379,6.1523,190.32,190.23,0.78828489]
[1735716118578,6.1523,190.32,190.24,10.62350775]
[1735716118986,6.1523,190.32,190.23,10.62350775]
[1735716120988,6.1523,190.32,190.21,71.42156104]
[1735716121181,6.1523,190.32,190.21,60.79805329]
[1735716121378,1.6364,190.31,190.21,60.79805329]
[1735716122479,1.6364,190.31,190.2,10.62350775]
[1735716124387,20.0,190.29,190.19,60.79805329]
[1735716124584,20.0,190.29,190.2,10.62350775]
[1735716125400,20.0,190.29,190.22,10.62350775]
[1735716126798,1.6364,190.31,190.23,10.62350775]
[1735716128105,1.6364,190.31,190.22,10.62350775]
[1735716130621,1.6364,190.31,190.23,10.62350775]
[1735716132910,1.6364,190.31,190.24,10.62350775]
[1735716134517,1.6364,190.31,190.23,10.62350775]
[1735716142409,1.6364,190.31,190.22,35.18873091]
[1735716146323,1.6364,190.31,190.22,24.56522316]
[1735716146496,1.6364,190.31,190.23,10.62350775]
[1735716148816,1.6364,190.31,190.22,24.56522429]
[1735716149115,1.6364,190.31,190.23,10.62350775]
[1735716149314,1.6364,190.31,190.23,12.40279706]
[1735716149916,1.6364,190.31,190.23,10.62350775]
[1735716150412,1.6364,190.31,190.22,35.18873204]
[1735716150799,1.6364,190.31,190.23,1.77969986]
[1735716151407,1.6364,190.31,190.22,35.18873204]
[1735716152216,1.6364,190.31,190.22,11.41184804]
[1735716152518,1.6364,190.31,190.2,10.62350775]
[1735716153417,1.6364,190.31,190.21,10.62350775]
[1735716153619,1.6364,190.31,190.21,12.40375364]
[1735716154195,1.6364,190.31,190.22,10.62350775]
[1735716154399,1.6364,190.31,190.23,10.62350775]
[1735716155216,1.6364,190.31,190.21,10.62350775]
[1735716156822,1.6364,190.31,190.2,34.40039175]
[1735716157017,6.5113,190.3,190.2,10.62350775]
[1735716157327,6.5113,190.3,190.19,34.40039175]
[1735716157825,6.5113,190.3,190.2,1.78107313]
[1735716158426,6.5113,190.3,190.19,34.40039175]
[1735716159023,6.5113,190.3,190.2,10.62350775]
[1735716161629,20.0,190.27,190.18,60.79805329]
[1735716161844,1.5783,190.25,190.17,23.776884]
[1735716162124,1.5783,190.25,190.15,71.42156104]
[1735716162516,1.5783,190.25,190.18,1.78106889]
[1735716163222,1.5783,190.25,190.15,71.42156104]
[1735716163419,1.5783,190.25,190.16,4.41373851]
[1735716164224,1.5783,190.25,190.17,1.78140872]
[1735716165029,1.5783,190.25,190.15,71.42156104]
[1735716165835,1.5783,190.25,190.16,1.78190594]
[1735716166233,1.5783,190.25,190.15,71.42156104]
[1735716166537,1.5783,190.25,190.18,10.62350775]
[1735716166711,1.5783,190.25,190.16,24.56553417]
[1735716166712,1.5783,190.25,190.19,10.62350775]
[1735716167140,1.5783,190.25,190.18,10.62350775]
[1735716169834,1.5783,190.25,190.15,13.1473]
[1735716170028,1.5783,190.25,190.15,23.77080775]
[1735716170413,1.5783,190.25,190.16,1.77994126]
[1735716170832,1.5783,190.25,190.15,23.77080775]
[1735716172117,1.5783,190.25,190.16,1.77908281]
[1735716173235,1.5783,190.25,190.14,10.62350775]
[1735716173616,1.5783,190.25,190.15,1.77887451]
[1735716174741,1.5783,190.25,190.14,10.62350775]
[1735716178238,1.5783,190.25,190.13,10.62350775]
[1735716178445,1.5783,190.25,190.13,34.40039175]
[1735716179043,1.5783,190.25,190.14,1.77711508]
[1735716179240,20.0,190.21,190.14,1.77711508]
[1735716179421,6.18,190.2,190.14,1.77711508]
[1735716180051,6.18,190.2,190.12,1.77711508]
[1735716180646,6.18,190.2,190.11,10.62350775]
[1735716181347,6.18,190.2,190.12,10.62350775]
[1735716182183,6.18,190.2,190.15,10.62350775]
[1735716182343,1.6106,190.23,190.15,11.41212026]
[1735716182644,1.6106,190.23,190.15,10.62350775]
[1735716182949,1.6106,190.23,190.14,34.40039175]
[1735716184851,1.6106,190.23,190.14,35.18905208]
[1735716186147,1.6106,190.23,190.15,10.62350775]
[1735716189150,1.6106,190.23,190.14,35.18905208]
[1735716189550,1.6106,190.23,190.17,10.62350775]
[1735716190131,1.6106,190.23,190.17,23.776884]
[1735716190659,1.6106,190.23,190.14,60.79805329]
[1735716191031,1.6106,190.23,190.12,11.41217407]
[1735716191227,1.6106,190.23,190.12,0.78866632]
[1735716191444,1.6106,190.23,190.13,2.62779548]
[1735716191445,7.74756714,190.23,190.13,2.62779548]
[1735716192251,7.74756714,190.23,190.1,10.62350775]
[1735716192652,20.0,190.2,190.1,10.62350775]
[1735716193030,20.0,190.2,190.11,1.77918398]
[1735716193844,20.0,190.2,190.1,10.62350775]
[1735716195061,20.0,190.2,190.11,1.77945065]
[1735716195761,20.0,190.2,190.12,1.77945065]
[1735716196566,20.0,190.2,190.1,10.62350775]
[1735716197170,20.0,190.2,190.11,1.77988847]
[1735716197364,7.74756714,190.23,190.11,1.77988847]
[1735716197945,7.74756714,190.23,190.12,1.77988847]
[1735716198451,20.0,190.2,190.12,1.77988847]
[1735716198767,20.0,190.2,190.1,10.62350775]
[1735716203182,6.3842,190.19,190.1,10.62350775]
[1735716203363,6.3842,190.19,190.1,23.776884]
[1735716204386,1.5654,190.18,190.09,60.79805329]
[1735716204559,1.5654,190.18,190.09,61.58692055]
[1735716204760,1.5654,190.18,190.1,1.78050893]
[1735716205665,1.5654,190.18,190.08,23.776884]
[1735716205964,1.5654,190.18,190.07,14.04434201]
[1735716206166,1.5654,190.18,190.07,3.42083426]
[1735716206466,1.5654,190.18,190.08,1.78075581]
[1735716207188,1.5654,190.18,190.09,1.78075581]
[1735716207390,20.0,190.16,190.09,1.78075581]
[1735716207565,1.5654,190.18,190.09,1.78075581]
[1735716207765,1.5654,190.18,190.08,34.40039175]
[1735716208866,1.5654,190.18,190.08,23.776884]
[1735716209061,1.5654,190.18,190.08,34.40039175]
[1735716209583,1.5654,190.18,190.09,1.7800941]
[1735716210391,1.5654,190.18,190.1,1.7800941]
[1735716211189,1.5654,190.18,190.08,34.40039175]
[1735716212084,1.5654,190.18,190.09,1.78005791]
[1735716212892,1.5654,190.18,190.08,34.40039175]
[1735716214097,1.5654,190.18,190.09,1.77981014]
[1735716214796,1.5654,190.18,190.08,34.40039175]
[1735716215090,1.5654,190.18,190.08,23.776884]
[1735716215276,1.5654,190.18,190.08,34.40039175]
[1735716217195,1.5654,190.18,190.09,1.77944495]
[1735716217894,1.5654,190.18,190.08,34.40039175]
[1735716218110,1.5654,190.18,190.08,23.776884]
[1735716220494,1.5654,190.18,190.07,11.41253501]
[1735716221176,1.5654,190.18,190.08,1.77907736]
[1735716221775,1.5654,190.18,190.07,11.41253501]
[1735716222974,1.5654,190.18,190.07,14.0418098]
[1735716223176,20.0,190.16,190.08,1.77870719]
[1735716223992,20.0,190.16,190.07,11.41253501]
[1735716224991,20.0,190.16,190.07,0.78902726]
[1735716225195,20.0,190.16,190.07,11.41253501]
[1735716225495,20.0,190.16,190.08,1.77832396]
[1735716225998,20.0,190.16,190.07,11.41253501]
[1735716226296,20.0,190.16,190.07,0.78902726]
[1735716226493,20.0,190.16,190.07,11.41253501]
[1735716227504,20.0,190.16,190.07,0.78902726]
[1735716227676,20.0,190.16,190.08,1.77877565]
[1735716227872,6.3842,190.19,190.08,1.77877565]
[1735716227873,6.6459,190.15,190.08,1.77877565]
[1735716228079,1.5031,190.14,190.08,1.77877565]
[1735716228502,1.5031,190.14,190.06,60.79805329]
[1735716229080,1.5031,190.14,190.07,1.7790883]
[1735716230204,1.5031,190.14,190.06,60.79805329]
[1735716231605,1.5031,190.14,190.07,1.7798885]
[1735716232102,1.5031,190.14,190.06,60.79805329]
[1735716232903,1.5031,190.14,190.04,11.41245137]
[1735716233103,1.5031,190.14,190.04,0.78894362]
[1735716233407,1.5031,190.14,190.05,1.7803428]
[1735716234204,1.5031,190.14,190.06,1.7803428]
[1735716235104,1.5031,190.14,190.07,1.7803428]
[1735716235904,1.5031,190.14,190.05,2.63316221]
[1735716236208,1.5031,190.14,190.04,11.41245137]
[1735716236685,1.5031,190.14,190.05,1.78202578]
[1735716237410,1.5031,190.14,190.06,1.78202578]
[1735716237711,1.5031,190.14,190.06,4.41617042]
[1735716238009,1.5031,190.14,190.07,1.78202578]
[1735716239000,1.5031,190.14,190.04,11.41245137]
[1735716239511,1.5031,190.14,190.05,1.78220427]
[1735716239890,1.5031,190.14,190.06,2.63442708]
[1735716240186,1.5031,190.14,190.07,1.78220427]
[1735716241096,1.5031,190.14,190.08,1.78220427]
[1735716241806,1.5031,190.14,190.05,2.63404001]
[1735716242223,1.5031,190.14,190.06,1.78196466]
[1735716242416,1.5031,190.14,190.06,4.41600467]
[1735716243017,1.5031,190.14,190.06,1.78196466]
[1735716243211,1.5031,190.14,190.07,1.78196466]
[1735716243900,1.5031,190.14,190.03,60.79805329]
[1735716244410,1.6641,190.1,190.0,60.79805329]
[1735716244599,1.6641,190.1,190.04,4.4191236]
[1735716245194,1.6641,190.1,190.04,1.7830801]
[1735716245401,1.6641,190.1,190.01,23.776884]
[1735716246090,1.6641,190.1,190.02,2.63610509]
[1735716246317,1.6641,190.1,190.02,4.41930499]
[1735716246503,1.6641,190.1,190.02,1.7831999]
[1735716247312,1.6641,190.1,190.03,4.41834693]
[1735716247899,1.6641,190.1,190.04,1.7831999]
[1735716249109,1.6641,190.1,190.05,1.7831999]
[1735716249320,1.6641,190.1,190.05,4.41704043]
[1735716249520,1.6641,190.1,190.06,1.7831999]
[1735716250105,1.6641,190.1,190.03,0.78918219]
[1735716250725,1.6641,190.1,190.04,4.41412846]
[1735716251426,1.6641,190.1,190.05,4.41412846]
[1735716252127,1.6641,190.1,190.05,1.78092775]
[1735716252321,1.6641,190.1,190.06,1.78092775]
[1735716252821,1.6641,190.1,190.04,2.63230349]
[1735716253515,1.6641,190.1,190.05,1.78095412]
[1735716254026,1.6641,190.1,190.03,0.78918219]
[1735716254523,1.6641,190.1,190.04,1.78099572]
[1735716255214,1.6641,190.1,190.0,23.776884]
[1735716255526,1.6641,190.1,190.0,26.41057346]
[1735716256223,1.6641,190.1,190.01,4.41508639]
[1735716256727,1.6641,190.1,190.02,1.78139693]
[1735716256930,1.6641,190.1,190.02,4.41508639]
[1735716257518,1.6641,190.1,190.03,1.78139693]
[1735716258229,1.6641,190.1,190.04,1.78139693]
[1735716258540,6.5455,190.09,190.04,1.78139693]
[1735716259013,6.5455,190.09,190.0,23.776884]
[1735716259212,6.5455,190.09,190.0,24.56610286]
[1735716259538,6.5455,190.09,190.01,1.78139693]
[1735716259832,6.5455,190.09,190.01,4.41575009]
[1735716260236,6.5455,190.09,190.02,2.57057904]
[1735716260413,6.5455,190.09,190.02,15.82843995]